[Event "French-ch U12-U14 2024"]
[Site "Agen"]
[Date "2024.04.21"]
[Round "9.15"]
[White "Ricard-Codeverte, Emma"]
[Black "Ourry, Elina"]
[Result "0-1"]
[ECO "A25"]
[WhiteElo "1531"]
[BlackElo "1678"]
[Annotator "NA RC COMBH"]
[PlyCount "38"]
[EventDate "2024.04.14"]
[EventType "swiss"]
[EventCountry "FRA"]
[SourceTitle "playchess.com"]
[Source "ChessBase"]
[SourceQuality "1"]
[TimeControl "5400+30"]

1. c4 {[%emt 0:00:03]} e5 {[%emt 0:00:14]} 2. Nc3 {[%emt 0:00:04]} Nf6 {[%emt 0:00:36]} 3. g3 {[%emt 0:00:10]} Nc6 {[%emt 0:01:00]} 4. Bg2 {[%emt 0:00:19]} Bc5 {[%emt 0:05:42]} 5. e3 {[%emt 0:01:27]} O-O {[%emt 0:07:10]} 6. Nge2 {[%emt 0:00:40]} Re8 {[%emt 0:04:34]} 7. O-O {[%emt 0:02:59]} e4 {[%emt 0:15:04]} 8. d4 {[%emt 0:04:14]} exd3 {[%emt 0:00:58]} 9. Qxd3 {[%emt 0:00:52]} Ne5 {[%emt 0:03:24]} 10. Qc2 {[%emt 0:01:41]} d6 {[%emt 0:07:17]} 11. Rd1 {[%emt 0:08:03]} c6 {[%emt 0:06:39]} 12. Ne4 {[%emt 0:03:52]} Bf5 {[%emt 0:03:20]} 13. Nxf6+ {[%emt 0:13:24]} Qxf6 {[%emt 0:01:12]} 14. Qc3 {[%emt 0:25:27]} Bg4 {[%emt 0:06:44]} 15. Qc2 {[%emt 0:14:42]} Nf3+ {[%emt 0:07:39]} 16. Kh1 {[%emt 0:01:17]} Re5 {[%emt 0:11:42]} 17. Rf1 {[%emt 0:16:33]} Rh5 {[%emt 0:03:16]} 18. h4 {[%emt 0:02:32]} Rxh4+ {[%emt 0:02:45]} 19. gxh4 {[%emt 0:01:07]} Qxh4+ {[%emt 0:10:44]} 0-1

[Event "French-ch U12-U14 2024"]
[Site "Agen"]
[Date "2024.04.21"]
[Round "9.17"]
[White "Plaidit, Hugo"]
[Black "Laignel, Quentin"]
[Result "0-1"]
[ECO "B12"]
[WhiteElo "1981"]
[BlackElo "2023"]
[Annotator "TA"]
[PlyCount "200"]
[EventDate "2024.04.14"]
[EventType "swiss"]
[EventCountry "FRA"]
[SourceTitle "playchess.com"]
[Source "ChessBase"]
[SourceQuality "1"]
[TimeControl "5400+30"]

{[%evp 73,200,50,194,0,0,0,0,0,0,0,0,0,0,0,0,-24,0,0,0,-18,-20,-20,-20,-28,-21,-37,-37,-30,-33,-24,-12,-8,-10,-210,-205,-246,-238,-304,-278,-318,-317,-358,-344,-464,-464,-409,-264,-263,-249,-329,-335,-331,-330,-246,0,-426,-230,-636,-445,-438,-404,-445,-440,-516,-493,-452,-353,-454,-443,-416,-70,-550,-550,-550,-299,-550,-543,-528,-517,-524,-479,-403,-8,-595,-531,-483,-515,-508,0,-323,0,-275,-8,-8,-8,-8,-8,-8,-8,-8,-8,-8,-8,-356,-8,-29976,-29977,-29977,-29978,-29978,-29979,-29981,-29976,-29975,-29976,-29976,-29978,-29977,-29977,-29977,-29978,-29980,-29981,-29987,-29988,-29988,-29989,-29989,-29990]} 1. e4 {[%emt 0:00:02]} c6 {[%emt 0:00:11]} 2. d4 {[%emt 0:00:09]} d5 {[%emt 0:00:15]} 3. e5 {[%emt 0:00:06]} Bf5 {[%emt 0:02:53]} 4. Bd3 {[%emt 0:00:32]} Bxd3 {[%emt 0:03:17]} 5. Qxd3 {[%emt 0:00:01]} e6 {[%emt 0:06:09]} 6. c3 {[%emt 0:00:17]} Qb6 {[%emt 0:10:00] B12: Caro-Kann: Advance Variation.} 7. Ne2 {[%emt 0:01:42]} c5 {[%emt 0:04:33] 7...Qa6 is the modern continuation.} 8. O-O {[%emt 0:00:19]} Nc6 {[%emt 0:05:47]} 9. Nd2 {[%emt 0:02:11]} Nge7 {[%emt 0:03:07]} 10. Nf3 {[%emt 0:00:18]} cxd4 {[%emt 0:03:08]} 11. cxd4 {[%emt 0:00:37]} h5 {[%emt 0:06:09]} 12. Bg5 $146 {[%emt 0:17:43]} ({Predecessor:} 12. a3 Nf5 13. Bd2 Be7 14. Ng3 Nfxd4 15. Nxd4 Qxd4 16. Qc2 Qxe5 17. Rfe1 Qc7 18. Re2 {1-0 Shlosberg,M (1592)-Schneider,P (1631) Mittelfranken-ch QT 49th 2000 (7)}) 12... Nf5 {[%emt 0:03:55]} 13. Rad1 {[%emt 0:02:29]} Be7 {[%emt 0:07:36]} 14. Bc1 {[%emt 0:07:21]} h4 {[%emt 0:08:34]} 15. g4 {[%emt 0:11:04]} hxg3 {[%emt 0:03:03]} 16. fxg3 {[%emt 0:00:28]} Nb4 {[%emt 0:07:32]} 17. Qb3 {[%emt 0:08:46]} Qa6 {[%emt 0:03:01]} 18. Nc3 {[%emt 0:04:15]} Nc6 {[%emt 0:02:17]} 19. Kg2 {[%emt 0:05:11]} Qb6 {[%emt 0:02:28]} 20. Nb5 {[%emt 0:06:48]} Qd8 {[%emt 0:04:34]} 21. g4 {[%emt 0:01:50]} Nh4+ {[%emt 0:02:15]} 22. Nxh4 {[%emt 0:00:54]} Rxh4 {[%emt 0:00:06]} 23. Qf3 {[%emt 0:00:31]} Kd7 {[%emt 0:02:58]} 24. Bf4 {[%emt 0:05:33]} Qb6 {[%emt 0:01:01]} 25. a4 {[%emt 0:02:41]} a6 {[%emt 0:00:43]} 26. Nd6 {[%emt 0:00:50]} Bxd6 {[%emt 0:00:16]} 27. exd6 {[%emt 0:00:08]} Rhh8 {[%emt 0:02:01]} 28. Bg3 {[%emt 0:00:52]} Rhf8 {[%emt 0:00:42]} 29. g5 {[%emt 0:03:30]} Qxb2+ {[%emt 0:03:10]} 30. Rf2 {[%emt 0:00:36]} Qb4 {[%emt 0:01:24]} 31. Qh5 {[%emt 0:01:47]} g6 {[%emt 0:01:22]} 32. Qh7 {[%emt 0:01:19]} Ke8 {[%emt 0:00:07]} 33. Rdf1 {[%emt 0:02:01]} Nd8 {[%emt 0:00:47]} 34. Be5 {[%emt 0:00:29]} b5 {[%emt 0:01:23]} 35. Bg7 {[%emt 0:01:48]} Qxd6 {[%emt 0:00:07]} 36. Bxf8 {[%emt 0:00:06]} Qxf8 {[%emt 0:00:16]} 37. Qh3 {[%emt 0:02:53]} Qe7 {[%emt 0:00:38]} (37... Rc8 $14) 38. Qg3 $2 {[%emt 0:00:24]} (38. Qh8+ $18 Qf8 39. Qh7) 38... Rc8 $11 {[%emt 0:00:34]} 39. axb5 {[%emt 0:00:32]} axb5 {[%emt 0:00:06]} 40. Ra1 {[%emt 0:00:23]} b4 {[%emt 0:00:28]} 41. Rfa2 {[%emt 0:00:27]} Rc3 {[%emt 0:00:25]} 42. Qf4 {[%emt 0:02:13]} Qc7 {[%emt 0:00:23]} 43. Qxc7 {[%emt 0:05:00]} Rxc7 {[%emt 0:00:07]} 44. Ra8 {[%emt 0:00:02]} Rb7 {[%emt 0:00:38]} 45. Kf3 {[%emt 0:02:11]} b3 {[%emt 0:00:51]} 46. Rb1 {[%emt 0:00:27]} Ke7 {[%emt 0:00:25]} 47. Ra3 {[%emt 0:00:31]} Nc6 {[%emt 0:00:20]} 48. Ke3 {[%emt 0:00:10]} b2 {[%emt 0:00:33]} 49. Kd3 {[%emt 0:00:23]} Rb4 {[%emt 0:00:13]} 50. Kc3 {[%emt 0:01:44]} Rc4+ {[%emt 0:00:33]} 51. Kxb2 {[%emt 0:00:31]} Nxd4 {[%emt 0:00:19]} 52. Ra7+ {[%emt 0:00:16]} Kf8 {[%emt 0:00:15]} 53. Ka2 $2 {[%emt 0:00:42]} (53. Rf1 $11 Nf5 54. Rc1) 53... Nf3 $1 $19 {[%emt 0:00:13]} 54. Rh1 {[%emt 0:01:21]} Rh4 {[%emt 0:00:23]} (54... Nxg5 55. h4 Ne4 56. Kb3 $19) 55. Kb3 {[%emt 0:00:44]} Nxg5 {[%emt 0:00:14]} (55... Nxh2 56. Ra8+ Kg7 57. Ra2) 56. Kc3 {[%emt 0:00:11]} d4+ {[%emt 0:00:53]} 57. Kd3 {[%emt 0:00:14]} e5 {[%emt 0:00:18]} 58. Ra5 {[%emt 0:00:10]} Rh3+ {[%emt 0:00:35]} 59. Kc4 {[%emt 0:00:20]} Re3 {[%emt 0:00:54]} 60. h4 {[%emt 0:00:26]} Ne6 {[%emt 0:00:48]} 61. h5 {[%emt 0:00:18]} gxh5 {[%emt 0:00:08]} 62. Rxh5 {[%emt 0:00:00]} Rc3+ {[%emt 0:00:24]} 63. Kb4 {[%emt 0:00:29]} e4 $2 {[%emt 0:00:40]} (63... Nf4 $1 $19 {[%cal Rf4h5]} 64. Raxe5 Nd3+ 65. Kb5 Nxe5 66. Rxe5 Kg7) 64. Ra7 $2 {[%emt 0:00:56][%mdl 8192]} (64. Rh8+ $11 {and White stays safe.} Kg7 65. Rh4) 64... Rf3 {[%emt 0:00:54]} (64... e3 $142 65. Re5 Rc6) 65. Rh7 $2 {[%emt 0:01:59]} (65. Re5) 65... Kg8 {[%emt 0:00:33]} 66. Rh1 {[%emt 0:01:29]} Kg7 {[%emt 0:00:35]} 67. Kc4 {[%emt 0:00:06]} Rf5 {[%emt 0:00:38]} 68. Re1 {[%emt 0:00:51]} Rc5+ {[%emt 0:00:20]} 69. Kb4 {[%emt 0:00:12]} Re5 {[%emt 0:00:50]} 70. Rf1 {[%emt 0:00:10]} Ng5 {[%emt 0:00:13]} 71. Kc4 {[%emt 0:00:17]} e3 $2 {[%emt 0:00:38]} (71... Nf3 $19 72. Rd7 Re6) 72. Kd3 $2 {[%emt 0:00:37][%mdl 8192]} ({White has to play} 72. Kxd4 $15 e2 73. Raxf7+ Nxf7 74. Re1) 72... e2 $19 {[%emt 0:00:13]} 73. Re1 {[%emt 0:00:11]} Ne6 {[%emt 0:00:39]} 74. Kd2 $2 {[%emt 0:01:06]} (74. Ra2) 74... Nf4 $19 {[%emt 0:00:33]} 75. Ra4 {[%emt 0:00:30]} Re4 {[%emt 0:00:15]} 76. Rb4 {[%emt 0:00:38]} f5 {[%emt 0:00:37]} 77. Rb6 {[%emt 0:00:54]} Re3 $2 {[%emt 0:01:21]} ({Black should play} 77... Kf7 $1 $19 {And now ...Re6 would win.} 78. Rd6 Ke7) 78. Ra1 $2 {[%emt 0:00:38][%mdl 8192]} (78. Rb4 $11) 78... Re7 {[%emt 0:00:29]} 79. Re1 {[%emt 0:00:28]} Ra7 {[%emt 0:00:16]} 80. Rb2 {[%emt 0:00:26]} Re7 $2 {[%emt 0:00:40]} (80... d3 $19 81. Rc1 Kf6) 81. Rb4 $2 {[%emt 0:00:17][%mdl 8192]} (81. Rb6 $1 $11 Ra7 82. Rb2) 81... Re4 {[%emt 0:00:29]} 82. Rb6 {[%emt 0:00:02]} d3 $2 {[%emt 0:00:40]} (82... Kf7 $1 $19 {...Re6 would now be deadly.} 83. Rb3 Kf6) 83. Rd6 $11 {[%emt 0:01:18]} Ng2 {[%emt 0:00:53]} 84. Rxd3 $1 {[%emt 0:00:07]} Nxe1 {[%emt 0:00:11]} 85. Kxe1 {[%emt 0:00:01]} Kf6 {[%emt 0:00:15]} (85... f4 $5 86. Rf3 $8 Kg6 $11) 86. Rf3 {[%emt 0:00:44]} Ke5 {[%emt 0:00:37]} 87. Rf2 {[%emt 0:00:06]} Re3 {[%emt 0:00:16]} 88. Rh2 $2 {[%emt 0:00:36][%mdl 8192]} (88. Rxe2 $11 {and White has nothing to worry.} Kf4 (88... Rxe2+ {gets mated.} 89. Kxe2 Ke4 90. Kf2 Kf4 91. Kg2 Ke3 92. Kg1 Ke2 93. Kh2 f4 94. Kh3 f3 95. Kg4 f2 96. Kf5 Ke3 97. Kf6 Ke4 98. Ke7 f1=Q 99. Kd6 Qc1 100. Ke6 Qc6+ 101. Ke7 Kf5 102. Kd8 Qb7 103. Ke8 Ke6 104. Kf8 Qf7#) 89. Kf1 Rxe2 90. Kxe2 Kg3 91. Ke3 f4+ 92. Ke2 f3+ 93. Ke1 Kg2 94. Kd2 f2 95. Kc3 f1=Q (95... f1=B 96. Kd4 $11) 96. Kb4 Qf5 97. Kc4 Kf3 98. Kb4 Ke3 99. Kc4 Qa5 100. Kb3 Kd3 101. Kb2 Qb6+ 102. Ka2 Kc3 103. Ka3 Qb3#) 88... Kd4 $2 {[%emt 0:00:35]} ({Black should try} 88... Kf4 $1 $19 {[%cal Rf4g3] ( -> ...Kg3)} 89. Rh8 Re4) 89. Rf2 $2 {[%emt 0:00:47][%mdl 8192] [#]} (89. Rh4+ $11 Ke5 90. Rh8) 89... Ke4 $1 {[%emt 0:00:55]} 90. Rh2 {[%emt 0:00:04] [#]} f4 $1 {[%emt 0:00:22]} 91. Rh8 {[%emt 0:00:34]} Kf5 {[%emt 0:00:38]} 92. Rg8 {[%emt 0:01:31]} Re5 {[%emt 0:00:36]} 93. Rf8+ {[%emt 0:00:28]} Kg4 {[%emt 0:00:17]} 94. Rg8+ {[%emt 0:00:02]} Kf3 {[%emt 0:00:21]} 95. Ra8 {[%emt 0:00:42]} Re3 {[%emt 0:01:01]} 96. Rd8 {[%emt 0:00:07]} Kg2 {[%emt 0:00:20]} 97. Rg8+ {[%emt 0:00:25]} Rg3 {[%emt 0:00:12]} 98. Rf8 {[%emt 0:00:41]} Kf3 {[%emt 0:00:25]} 99. Re8 {[%emt 0:00:40]} Rg1+ {[%emt 0:00:08]} 100. Kd2 {[%emt 0:00:01]} Rd1+ {[%emt 0:00:18]} 0-1

[Event "French-ch U12-U14 2024"]
[Site "Agen"]
[Date "2024.04.21"]
[Round "9.18"]
[White "Negre, Emilie"]
[Black "Pon Le Brun, Gregoire"]
[Result "1-0"]
[ECO "A25"]
[WhiteElo "1922"]
[BlackElo "1900"]
[Annotator "TA"]
[PlyCount "56"]
[EventDate "2024.04.14"]
[EventType "swiss"]
[EventCountry "FRA"]
[SourceTitle "playchess.com"]
[Source "ChessBase"]
[SourceQuality "1"]
[TimeControl "5400+30"]

{[%evp 14,56,63,72,69,63,71,45,59,22,24,0,0,0,0,-12,18,3,107,104,103,105,114,111,122,82,216,187,207,208,245,250,255,248,249,250,248,37,31,35,34,-65,1099,1091,1094]} 1. c4 {[%emt 0:00:58]} e5 {[%emt 0:01:08]} 2. g3 {[%emt 0:01:00]} Nc6 {[%emt 0:02:26]} 3. Bg2 {[%emt 0:00:16]} f5 {[%emt 0:01:18]} 4. Nc3 {[%emt 0:00:20]} Nf6 {[%emt 0:00:35]} 5. e3 {[%emt 0:00:30]} Bb4 {[%emt 0:01:36]} 6. Nge2 {[%emt 0:00:36]} O-O {[%emt 0:09:54]} 7. O-O {[%emt 0:02:51]} Bxc3 {[%emt 0:01:43]} 8. Nxc3 {[%emt 0:00:45]} d6 {[%emt 0:05:53]} 9. d4 {[%emt 0:01:55]} Qe8 {[%emt 0:00:47]} 10. a3 {[%emt 0:32:08]} Qf7 {[%emt 0:18:45] White is slightly better.} 11. d5 {[%emt 0:04:14]} Ne7 {[%emt 0:02:24][%cal Bc6e7,Be7g6,Bg6e5,Be5f3][%mdl 32]} 12. b4 {[%emt 0:07:44]} e4 {[%emt 0:10:55]} 13. Bb2 {[%emt 0:05:31]} Ng6 {[%emt 0:04:46]} 14. Qe2 {[%emt 0:10:28]} Ne5 {[%emt 0:04:42]} 15. Nb5 {[%emt 0:01:31]} f4 {[%emt 0:07:20]} 16. exf4 $16 {[%emt 0:02:41]} Bg4 {[%emt 0:01:50]} 17. Qc2 {[%emt 0:14:17]} Nf3+ {[%emt 0:00:51]} 18. Bxf3 {[%emt 0:01:15]} Bxf3 {[%emt 0:04:34]} 19. Nd4 $1 {[%emt 0:01:10] White is more active.} Ng4 {[%emt 0:03:13] [#]} (19... Qh5 $16 {might work better.} 20. Nxf3 exf3) 20. Nxf3 $1 $18 {[%emt 0:02:50]} exf3 {[%emt 0:00:16]} 21. Qc3 {[%emt 0:03:24]} Rae8 {[%emt 0:03:04]} 22. h3 {[%emt 0:01:02]} Nf6 {[%emt 0:02:47]} 23. Qxf3 {[%emt 0:00:05]} Ne4 {[%emt 0:01:41]} 24. Rfe1 {[%emt 0:00:34]} Qg6 {[%emt 0:05:38]} 25. Qd3 {[%emt 0:02:06] Prevents Nd2.} (25. Bd4 $18) 25... Rxf4 $14 {[%emt 0:01:20]} 26. Bd4 {[%emt 0:02:35][%cal Oa1a2] And now Ra2! would win.} Rh4 $1 {[%emt 0:03:29]} 27. Kh2 {[%emt 0:00:27] [#]} (27. Bxa7 b6 $11 (27... Rxh3 28. Bd4 $11) (27... Rxh3 28. Bd4 $17)) (27. Kg2 $14) 27... Qg4 $2 {[%emt 0:00:33][%mdl 8192]} 28. gxh4 $18 {[%emt 0:00:14]} Qf5 {[%emt 0:01:02] Weighted Error Value: White=0.26 (precise) /Black=0.26 (precise) .  Loses game:     	---       	Black=1      Missed win:     	White=1     	---        Mistake:       	White=1     	Black=2      Inaccurate:     	White=2     	Black=1      OK:         	White=9     	Black=5      Best:        	White=3     	Black=2      Strong:       	White=1     	Black=1} 1-0

[Event "French-ch U12-U14 2024"]
[Site "Agen"]
[Date "2024.04.21"]
[Round "9.19"]
[White "Breuil, Virgile"]
[Black "Ben Amar, Yanis"]
[Result "1-0"]
[ECO "C45"]
[WhiteElo "2307"]
[BlackElo "1946"]
[Annotator "TA"]
[PlyCount "108"]
[EventDate "2024.04.14"]
[EventType "swiss"]
[EventCountry "FRA"]
[SourceTitle "playchess.com"]
[Source "ChessBase"]
[SourceQuality "1"]
[TimeControl "5400+30"]

{[%evp 17,108,0,21,29,15,0,75,49,58,-5,104,97,108,103,95,103,110,104,116,103,108,110,107,110,104,96,89,97,113,105,142,116,131,118,124,107,132,133,137,108,131,99,97,93,103,103,106,46,158,156,162,152,173,157,216,218,218,218,218,218,535,173,456,173,162,162,283,0,155,8,8,8,8,8,8,8,8,0,168,0,133,0,133,8,8,200,199,183,29983,29984,29984,0,243]} 1. e4 {[%emt 0:00:11]} e5 {[%emt 0:00:56]} 2. Nf3 {[%emt 0:00:24]} Nc6 {[%emt 0:00:05]} 3. d4 {[%emt 0:00:30]} exd4 {[%emt 0:00:06]} 4. Nxd4 {[%emt 0:00:07]} Nf6 {[%emt 0:00:08][%cal Bg8f6,Bf6d5,Bd5b6][%mdl 32]} 5. Nxc6 {[%emt 0:00:25]} bxc6 {[%emt 0:00:09]} 6. e5 {[%emt 0:00:26]} Qe7 {[%emt 0:00:09]} 7. Qe2 {[%emt 0:00:28]} Nd5 {[%emt 0:00:06]} 8. c4 {[%emt 0:00:30]} Nb6 {[%emt 0:00:07]} 9. Nc3 {[%emt 0:00:29]} a5 {[%emt 0:00:07]} 10. f4 {[%emt 0:00:54]} d5 {[%emt 0:00:24]} 11. Qf3 {[%emt 0:06:25][%cal Rc4d5]} Qe6 {[%emt 0:25:48]} (11... Qh4+ $11 12. g3 Qg4 13. Qxg4 Bxg4) 12. Be3 {[%emt 0:07:27] And now Bxb6 would win. White is better.} Bb4 {[%emt 0:03:31]} 13. Be2 {[%emt 0:05:29]} (13. cxd5 $14 Nxd5 14. Bc4) 13... Ba6 {[%emt 0:09:18]} (13... Nxc4 $11 {keeps the balance.} 14. Bxc4 dxc4) 14. Bxb6 $16 {[%emt 0:05:13]} cxb6 {[%emt 0:00:16]} 15. cxd5 {[%emt 0:00:30]} Qxd5 {[%emt 0:05:04]} 16. Qxd5 {[%emt 0:02:43]} cxd5 {[%emt 0:00:03]} 17. Bxa6 {[%emt 0:00:17]} Rxa6 {[%emt 0:00:58]} 18. O-O-O {[%emt 0:00:26]} Bxc3 {[%emt 0:00:21]} 19. bxc3 {[%emt 0:00:37][%mdl 4096] Endgame. KRR-KRR} Ke7 {[%emt 0:03:35]} 20. Rxd5 {[%emt 0:00:57] White is more active.} Rc8 {[%emt 0:00:00]} 21. Kb2 {[%emt 0:01:19]} Ra7 {[%emt 0:01:55]} 22. Rhd1 {[%emt 0:01:33]} Rac7 {[%emt 0:01:16]} 23. R1d3 {[%emt 0:00:52]} f6 {[%emt 0:04:35]} 24. Re3 {[%emt 0:03:10]} Rc6 {[%emt 0:06:12]} 25. g4 {[%emt 0:03:39]} Ke6 {[%emt 0:05:25]} 26. Rb5 {[%emt 0:03:27]} Rd8 {[%emt 0:04:17]} 27. exf6+ {[%emt 0:04:58]} Kxf6 {[%emt 0:02:57]} 28. Rf5+ {[%emt 0:00:20]} Kg6 {[%emt 0:00:01]} 29. h4 {[%emt 0:00:21] Hoping for h5+.} Rd2+ {[%emt 0:00:22]} 30. Kb3 {[%emt 0:00:56] Strongly threatening h5+.} Rg2 {[%emt 0:00:55]} 31. Rg5+ $1 {[%emt 0:01:43]} Kf6 {[%emt 0:00:02]} 32. a4 {[%emt 0:01:40]} ({Better is} 32. Re4 $16) 32... g6 {[%emt 0:03:26] [#]} (32... Rg1 $14) 33. f5 $1 {[%emt 0:01:56]} Rg1 {[%emt 0:05:51]} 34. Rf3 {[%emt 0:01:38]} Kg7 {[%emt 0:02:13]} 35. h5 {[%emt 0:05:07]} Kh6 {[%emt 0:05:55] [#]} (35... Rb1+ $16 36. Ka2 Rg1) 36. fxg6 $1 $18 {[%emt 0:00:47]} hxg6 {[%emt 0:00:57]} (36... Kxg5 $2 37. g7 Rc8 38. Rf8 $18) 37. Rxg6+ {[%emt 0:01:19]} Rxg6 {[%emt 0:00:01]} 38. hxg6 {[%emt 0:00:08]} Kxg6 $2 {[%emt 0:00:48] KR-KR} (38... Rxg4 39. Rf6 Rg1) 39. Rf5 $2 {[%emt 0:03:16]} (39. Kc4 Kg5 40. Rf8) 39... Re1 $2 {[%emt 0:00:07]} (39... Ra1 {was worth a try.} 40. Rd5 Kf6) 40. Rd5 $2 {[%emt 0:01:18]} (40. Kc4 Ra1 41. Kb3) 40... Kf6 {[%emt 0:00:54]} 41. Kc4 {[%emt 0:01:21]} Ra1 {[%emt 0:01:41]} (41... Ke6 {was necessary.}) 42. Kb3 $2 {[%emt 0:01:34]} (42. Kb5 $18) 42... Ke6 {[%emt 0:00:24] Wards off Rd6+} (42... Re1 $1 $11) 43. Rb5 {[%emt 0:00:59]} ({White should try} 43. Rd4 $16) 43... Kd7 $1 $11 {[%emt 0:00:11]} 44. g5 {[%emt 0:00:43][%cal Oc3c4] Black should prevent c4!} (44. Rxb6 {leads to mate.} Rb1+ 45. Kc4 Rxb6 46. Kd5 Rg6 47. Kc5 Rg5+ (47... Rxg4 48. c4 Rg5+ 49. Kd4 Kc6 50. Kd3 Rg4 51. Kd2 Kc5 52. Ke3 Rxc4 53. Kf3 Rxa4 54. Ke2 Rd4 55. Kf2 a4 56. Kg3 a3 57. Kf3 a2 58. Kf2 a1=Q 59. Kg2 Qc3 60. Kg1 Rd2 61. Kh1 Qc1#) 48. Kd4 Rxg4+ 49. Kd5 Rxa4 50. c4 Rb4 51. Kd4 Kc6 52. Ke3 a4 (52... Rxc4 53. Kd3 Kb5 54. Ke3 a4 55. Ke2 a3 56. Kf3 a2 57. Ke3 a1=Q 58. Kd3 Qd1+ 59. Ke3 Qb3+ 60. Ke2 Rc2+ 61. Kf1 Qb1#) 53. Kf4 a3 (53... Rxc4+ 54. Ke5 Kc5 55. Kf6 a3 56. Kg5 a2 57. Kf5 a1=Q 58. Ke6 Rf4 59. Ke7 Qe5+ 60. Kd8 Rf8+ 61. Kd7 Qd6#) 54. Kg4 Rxc4+ 55. Kg5 a2 56. Kg6 a1=Q (56... a1=B 57. Kh5 Kd6 58. Kg6 Ke6 59. Kg5 Bf6+ 60. Kg6 Rg4+ 61. Kh5 Kf5 62. Kh6 Rh4#) 57. Kf5 Kd7 58. Kg6 Qg1+ 59. Kf5 Kd6 60. Kf6 Rf4#) 44... Kc6 {[%emt 0:00:26]} 45. Rf5 {[%emt 0:01:09]} Rg1 {[%emt 0:00:46]} 46. Rf6+ {[%emt 0:00:38]} Kc5 {[%emt 0:00:00]} 47. Rg6 {[%emt 0:05:34] Black must now prevent Rg8.} Rg4 $2 {[%emt 0:00:28]} (47... Rg2 $11 {and Black is okay.}) 48. Rg8 $18 {[%emt 0:00:28] g6 is the strong threat.} Kc6 {[%emt 0:00:17]} (48... Rg2 $1 $11) 49. Rg7 {[%emt 0:02:03]} ({White has to play} 49. g6 $16) 49... Kd6 {[%emt 0:02:39]} (49... Kc5 $11) 50. g6 $16 {[%emt 0:01:14][%cal Bg5g6,Bg6g7][%mdl 32]} Kc6 {[%emt 0:00:23]} 51. Rg8 {[%emt 0:01:10]} Kd7 {[%emt 0:00:21]} 52. g7 {[%emt 0:00:50]} Kc7 $2 {[%emt 0:00:07]} (52... Ke7 $18 53. Rb8 Rxg7 54. Rb7+ (54. Rxb6 Rg5 $16) 54... Kf8 55. Rxg7 (55. Rxb6 Rg2 $16) 55... Kxg7 56. Kc4 Kf6 57. Kb5 Ke5 58. Kxb6 Kd5 59. Kxa5 Kc6) 53. Ra8 {[%emt 0:00:08]} Kb7 {[%emt 0:09:57]} 54. Rg8 $2 {[%emt 0:25:44]} (54. g8=Q {mates} Rxg8 55. Rxg8 Kc6 56. Kc4 Kd6 57. Re8 Kd7 58. Re2 Kd6 59. Kb5 (59. Rd2+ Ke5 60. Kb5 Kf4 61. Kxb6 Kf3 62. Kxa5 Kg4 63. Kb6 Kf5)) 54... Kc7 {[%emt 0:00:30] Weighted Error Value: White=0.43/Black=0.70.  Loses game:     	---       	Black=1      Missed win:     	White=1     	---        Mistake:       	White=6     	Black=11     Inaccurate:     	White=1     	Black=1      OK:         	White=9     	Black=9      Best:        	White=7     	Black=3      Strong:       	White=3     	Black=1} 1-0